fUSD/lending_fUSD_20250202
["ID","MTS","AMOUNT","RATE_DAILY","PERIOD"]
[351300265,1738509055263,-1532.77,0.00011878,2]
[351300266,1738509055272,-500.0,0.00011878,2]
[351300267,1738509055282,-1063.75,0.00011878,2]
[351300268,1738509055291,-1037.73,0.00011879,2]
[351300269,1738509055301,-1075.76,0.00011879,2]
[351300270,1738509055312,-809.15,0.00011879,2]
[351300271,1738509055321,-1000.0,0.00011879,2]
[351300272,1738509055331,-1620.5,0.00011879,2]
[351300273,1738509055340,-500.0,0.00011879,2]
[351300274,1738509055350,-1429.49,0.00011879,2]
[351300275,1738509055359,-1701.95,0.00011879,2]
[351300276,1738509055368,-37696.98989958,0.000119,2]
[351300429,1738509057090,-500.0,0.00011227,2]
[351300431,1738509057099,-963.79,0.00011228,2]
[351300433,1738509057108,-500.0,0.0001133,2]
[351300435,1738509057117,-7351.84957483,0.00011365,2]
[351300437,1738509057128,-2854.65254676,0.00011365,2]
[351300439,1738509057140,-1850.9311271,0.00011365,2]
[351300441,1738509057151,-1155.0,0.00011365,2]
[351300444,1738509057163,-992.84,0.00011365,2]
[351300446,1738509057174,-500.0,0.00011365,2]
[351300451,1738509057216,-2062.86126681,0.00011365,2]
[351300453,1738509057227,-613447.29302344,0.00011365,2]
[351300456,1738509057247,-185.35,0.00011364,2]
[351300459,1738509057256,-12307.07333692,0.00011365,2]
[351300461,1738509057274,-11249.18991209,0.00011365,2]
[351300464,1738509057286,-6157.7383401,0.00011365,2]
[351300466,1738509057297,-607.97363732,0.00011365,2]
[351300490,1738509057526,-500.0,0.00011228,2]
[351300492,1738509057535,-529.94312625,0.00011365,2]
[351300496,1738509057570,-855.12389015,0.00011365,2]
[351300499,1738509057581,-444.7091359,0.00011365,2]
[351300501,1738509057592,-1754.8557159,0.00011365,2]
[351300541,1738509057976,-500.0,0.0001133,2]
[351300543,1738509057986,-84.95218473,0.00011365,2]
[351300545,1738509057998,-1582388.21864382,0.00011365,2]
[351300547,1738509058008,-632.91,0.00011365,2]
[351300549,1738509058017,-963.79,0.00011365,2]
[351300551,1738509058026,-500.0,0.00011365,2]
[351300553,1738509058035,-500.0,0.00011425,2]
[351300555,1738509058045,-500.0,0.00011467,2]
[351300557,1738509058055,-500.0,0.00011467,2]
[351300559,1738509058064,-632.91,0.00011502,2]
[351300561,1738509058074,-963.79,0.00011502,2]
[351300563,1738509058083,-500.0,0.00011502,2]
[351300565,1738509058094,-500.0,0.00011604,2]
[351300567,1738509058103,-500.0,0.00011604,2]
[351300569,1738509058113,-1015.84,0.00011638,2]
[351300571,1738509058122,-632.91,0.00011639,2]
[351300573,1738509058132,-963.79,0.00011639,2]
[351300575,1738509058141,-500.0,0.00011639,2]
[351300577,1738509058151,-500.0,0.00011741,2]
[351300578,1738509058161,-500.0,0.00011741,2]
[351300579,1738509058170,-1015.84,0.00011775,2]
[351300580,1738509058180,-500.0,0.00011776,2]
[351300581,1738509058189,-632.91,0.00011776,2]
[351300582,1738509058199,-963.79,0.00011776,2]
[351300583,1738509058208,-500.0,0.00011776,2]
[351300584,1738509058219,-500.0,0.00011878,2]
[351300585,1738509058228,-500.0,0.00011878,2]
[351300586,1738509058238,-500.0,0.0001189,2]
[351300587,1738509058247,-112260.76735013,0.000119,2]
[351300589,1738509058256,-63719.45652745,0.000119,2]
[351300591,1738509058266,-9133.393812,0.000119,2]
[351300593,1738509058275,-1100.0,0.000119,4]
[351300595,1738509058285,-36278.30530213,0.000119,2]
[351300597,1738509058294,-195.65433536,0.000119,2]
[351300599,1738509058303,-1144.71,0.00011912,2]
[351300601,1738509058314,-1893.88,0.00011912,2]
[351300603,1738509058324,-500.0,0.00011912,2]
[351300605,1738509058335,-643.88,0.00011912,2]
[351300607,1738509058345,-995.66,0.00011912,2]
[351300609,1738509058354,-2087.59,0.00011912,2]
[351300611,1738509058363,-3959.48,0.00011912,2]
[351300613,1738509058374,-846.12,0.00011912,2]
[351300615,1738509058383,-548.91,0.00011912,2]
[351300618,1738509058393,-1484.11,0.00011912,2]
[351300620,1738509058404,-500.0,0.00011912,2]
[351300622,1738509058414,-500.0,0.00011912,2]
[351300624,1738509058424,-1137.73,0.00011912,2]
[351300626,1738509058434,-788.57,0.00011912,2]
[351300628,1738509058444,-1015.84,0.00011912,2]
[351300630,1738509058454,-500.0,0.00011913,2]
[351300632,1738509058464,-500.0,0.00011913,2]
[351300634,1738509058474,-500.0,0.00011913,2]
[351300636,1738509058484,-272.37718895,0.00011913,2]
[351300637,1738509058493,-649.24,0.00011913,2]
[351300639,1738509058503,-500.0,0.00011913,2]
[351300641,1738509058513,-500.0,0.00011913,2]
[351300643,1738509058523,-648.03,0.00011913,2]
[351300645,1738509058534,-604.32,0.00011913,2]
[351300647,1738509058544,-500.0,0.00011913,2]
[351300649,1738509058554,-500.0,0.00011913,2]
[351300652,1738509058570,-500.0,0.00011913,2]
[351300653,1738509058579,-500.0,0.00011913,2]
[351300655,1738509058589,-633.12,0.00011913,2]
[351300657,1738509058600,-500.0,0.00011913,2]
[351300660,1738509058611,-212.26406989,0.00011913,2]
[351300662,1738509058622,-500.0,0.00011913,2]
[351300663,1738509058633,-500.0,0.00011913,2]
[351300665,1738509058643,-500.0,0.00011913,2]
[351300668,1738509058653,-500.0,0.00011913,2]
[351300670,1738509058663,-500.0,0.00011913,2]
[351300672,1738509058673,-587.49,0.00011913,2]
[351300674,1738509058682,-266.880554,0.00011913,2]
[351300676,1738509058692,-500.0,0.00011913,2]
[351300678,1738509058702,-500.0,0.00011913,2]
[351300680,1738509058712,-500.0,0.00011913,2]
[351300682,1738509058722,-500.0,0.00011913,2]
[351300683,1738509058732,-500.0,0.00011913,2]
[351300685,1738509058742,-631.98,0.00011913,2]
[351300687,1738509058756,-500.0,0.00011913,2]
[351300689,1738509058766,-500.0,0.00011913,2]
[351300691,1738509058775,-197.57927,0.00011913,2]
[351300693,1738509058785,-500.0,0.00011913,2]
[351300695,1738509058795,-500.0,0.00011913,2]
[351300697,1738509058804,-500.0,0.00011913,2]
[351300699,1738509058818,-500.0,0.00011913,2]
[351300701,1738509058829,-603.39,0.00011913,2]
[351300703,1738509058839,-500.0,0.00011913,2]
[351300705,1738509058849,-572.64,0.00011913,2]
[351300707,1738509058859,-620.04,0.00011913,2]
[351300709,1738509058870,-793.77,0.00011913,2]
[351300711,1738509058880,-500.0,0.00011913,2]
[351300714,1738509058890,-500.0,0.00011913,2]
[351300715,1738509058900,-184.36002693,0.00011913,2]
[351300717,1738509058909,-485.17125784,0.00011913,2]
[351300719,1738509058920,-1514.01,0.00011913,2]
[351300722,1738509058930,-500.0,0.00011913,2]
[351300723,1738509058940,-500.0,0.00011913,2]
[351300725,1738509058949,-500.0,0.00011913,2]
[351300727,1738509058959,-619.92,0.00011913,2]
[351300729,1738509058968,-500.0,0.00011913,2]
[351300731,1738509058977,-500.0,0.00011913,2]
[351300733,1738509058986,-593.29,0.00011913,2]
[351300735,1738509058996,-500.0,0.00011913,2]
[351300737,1738509059006,-500.0,0.00011913,2]
[351300739,1738509059016,-500.0,0.00011913,2]
[351300741,1738509059026,-500.0,0.00011913,2]
[351300744,1738509059035,-600.03927801,0.00011913,2]
[351300746,1738509059045,-500.0,0.00011913,2]
[351300747,1738509059054,-722.25,0.00011913,2]
[351300750,1738509059065,-500.0,0.00011913,2]
[351300752,1738509059075,-500.0,0.00011913,2]
[351300754,1738509059084,-500.0,0.00011913,2]
[351300755,1738509059094,-768.02,0.00011913,2]
[351300758,1738509059104,-500.0,0.00011913,2]
[351300760,1738509059113,-796.48,0.00011913,2]
[351300762,1738509059123,-500.0,0.00011913,2]
[351300764,1738509059133,-500.0,0.00011913,2]
[351300766,1738509059143,-500.0,0.00011913,2]
[351300768,1738509059152,-500.0,0.00011913,2]
[351300770,1738509059162,-518.54,0.00011913,2]
[351300772,1738509059171,-500.0,0.00011913,2]
[351300774,1738509059181,-687.42,0.00011913,2]
[351300776,1738509059191,-755.99,0.00011913,2]
[351300778,1738509059200,-500.0,0.00011913,2]
[351300780,1738509059209,-631.91,0.00011913,2]
[351300782,1738509059219,-792.41,0.00011913,2]
[351300784,1738509059228,-500.0,0.00011913,2]
[351300786,1738509059238,-500.0,0.00011913,2]
[351300788,1738509059247,-1169.86,0.00011913,2]
[351300790,1738509059257,-500.0,0.00011913,2]
[351300792,1738509059266,-500.0,0.00011913,2]
[351300794,1738509059275,-713.69,0.00011913,2]
[351300796,1738509059285,-474.90801544,0.00011913,2]
[351300798,1738509059295,-1075.41,0.00011913,2]
[351300800,1738509059305,-505.6,0.00011913,2]
[351300802,1738509059315,-500.0,0.00011913,2]
[351300804,1738509059324,-500.0,0.00011913,2]
[351300806,1738509059333,-500.0,0.00011913,2]
[351300808,1738509059342,-1702.89,0.00011913,2]
[351300810,1738509059352,-500.0,0.00011913,2]
[351300812,1738509059361,-500.0,0.00011913,2]
[351300814,1738509059370,-741.62,0.00011913,2]
[351300816,1738509059379,-500.0,0.00011913,2]
[351300818,1738509059388,-879.04,0.00011913,2]
[351300820,1738509059398,-1102.18,0.00011913,2]
[351300822,1738509059409,-824.59,0.00011913,2]
[351300824,1738509059419,-1362.96,0.00011913,2]
[351300826,1738509059428,-500.0,0.00011913,2]
[351300828,1738509059437,-500.0,0.00011913,2]
[351300830,1738509059447,-984.81,0.00011913,2]
[351300832,1738509059457,-1459.42,0.00011913,2]
[351300834,1738509059466,-3568.69,0.00011913,2]
[351300836,1738509059475,-3396.6,0.00011913,2]
[351300838,1738509059485,-500.0,0.00011913,2]
[351300840,1738509059495,-1017.83,0.00011913,2]
[351300842,1738509059505,-2119.42,0.00011913,2]
[351300844,1738509059515,-721.46,0.00011913,2]
[351300846,1738509059525,-1173.33,0.00011913,2]
[351300848,1738509059535,-841.66,0.00011913,2]
[351300850,1738509059545,-2223.55,0.00011913,2]
[351300852,1738509059554,-500.0,0.00011913,2]
[351300853,1738509059565,-659.43,0.00011913,2]
[351300855,1738509059575,-2149.13,0.00011913,2]
[351300857,1738509059585,-939.31,0.00011913,2]
[351300859,1738509059595,-500.0,0.00011913,2]
[351300861,1738509059604,-1948.92,0.00011913,2]
[351300863,1738509059614,-2088.25,0.00011913,2]
[351300865,1738509059623,-366.17491426,0.00011913,2]
[351300867,1738509059633,-500.0,0.00011913,2]
[351300869,1738509059648,-2240.5,0.00011913,2]
[351300871,1738509059657,-500.0,0.00011913,2]
[351300873,1738509059667,-500.0,0.00011913,2]
[351300875,1738509059676,-1005.09,0.00011913,2]
[351300877,1738509059685,-500.0,0.00011913,2]
[351300879,1738509059695,-500.0,0.00011913,2]
[351300881,1738509059704,-500.0,0.00011913,2]
[351300883,1738509059714,-999.63,0.00011913,2]
[351300885,1738509059724,-500.0,0.00011913,2]
[351300887,1738509059733,-500.0,0.00011913,2]
[351300889,1738509059743,-1978.46,0.00011913,2]
[351300891,1738509059757,-500.0,0.00011913,2]
[351300894,1738509059767,-4322.96,0.00011913,2]
[351300896,1738509059777,-924.06,0.00011913,2]
[351300898,1738509059787,-1885.88,0.00011913,2]
[351300900,1738509059797,-500.0,0.00011913,2]
[351300902,1738509059807,-540.14,0.00011913,2]
[351300904,1738509059819,-2839.36,0.00011913,2]
[351300905,1738509059831,-500.0,0.00011913,2]
[351300907,1738509059842,-2117.27,0.00011913,2]
[351300909,1738509059852,-2577.93,0.00011913,2]
[351300911,1738509059861,-2621.55,0.00011913,2]
[351300913,1738509059871,-500.0,0.00011913,2]
[351300915,1738509059881,-500.0,0.00011913,2]
[351300917,1738509059891,-940.3,0.00011913,2]
[351300919,1738509059900,-500.0,0.00011913,2]
[351300921,1738509059910,-3774.98,0.00011913,2]
[351300923,1738509059919,-500.0,0.00011913,2]
[351300925,1738509059928,-388.44,0.00011913,2]
[351300927,1738509059938,-942.06,0.00011913,2]
[351300929,1738509059947,-500.0,0.00011913,2]
[351300931,1738509059957,-1347.65,0.00011913,2]
[351300933,1738509059966,-4045.04,0.00011913,2]
[351300935,1738509059976,-500.0,0.00011913,2]
[351300937,1738509059986,-934.14,0.00011913,2]
[351300939,1738509059995,-1676.71,0.00011913,2]
[351300941,1738509060005,-549.07,0.00011913,2]
[351300943,1738509060014,-500.0,0.00011913,2]
[351300945,1738509060024,-500.0,0.00011913,2]
[351300947,1738509060034,-1103.81,0.00011913,2]
[351300949,1738509060044,-547.47,0.00011913,2]
[351300951,1738509060055,-842.24,0.00011913,2]
[351300953,1738509060068,-656.43,0.00011913,2]
[351300955,1738509060078,-500.0,0.00011913,2]
[351300957,1738509060088,-500.0,0.00011913,2]
[351300959,1738509060098,-868.47,0.00011913,2]
[351300961,1738509060107,-5448.36,0.00011913,2]
[351300963,1738509060117,-2373.96,0.00011913,2]
[351300965,1738509060127,-500.0,0.00011913,2]
[351300967,1738509060136,-1633.72,0.00011913,2]
[351300969,1738509060146,-873.11,0.00011913,2]
[351300972,1738509060159,-500.0,0.00011913,2]
[351300974,1738509060169,-958.41,0.00011913,2]
[351300975,1738509060179,-925.74,0.00011913,2]
[351300977,1738509060189,-500.0,0.00011913,2]
[351300979,1738509060199,-500.0,0.00011913,2]
[351300981,1738509060209,-500.0,0.00011913,2]
[351300984,1738509060220,-500.0,0.00011913,2]
[351300986,1738509060230,-632.91,0.00011913,2]
[351300988,1738509060239,-963.79,0.00011913,2]
[351300990,1738509060249,-500.0,0.00011913,2]
[351300992,1738509060260,-500.0,0.00011914,2]
[351300994,1738509060270,-500.0,0.00011914,2]
[351300996,1738509060283,-500.0,0.00011914,2]
[351300998,1738509060293,-500.0,0.00011914,2]
[351301000,1738509060302,-500.0,0.00011914,2]
[351301002,1738509060312,-741.63,0.00011914,2]
[351301004,1738509060322,-529.27,0.00011914,2]
[351301006,1738509060331,-500.0,0.00011914,2]
[351301008,1738509060340,-1696.89,0.00011914,2]
[351301010,1738509060350,-500.0,0.00011914,2]
[351301012,1738509060359,-352.85368789,0.00011914,2]
[351301020,1738509060428,-147.14631211,0.00011914,2]
[351301022,1738509060438,-500.0,0.00011914,2]
[351301024,1738509060447,-500.0,0.00011914,2]
[351301026,1738509060457,-500.0,0.00011914,2]
[351301028,1738509060467,-500.0,0.00011914,2]
[351301030,1738509060476,-500.0,0.00011914,2]
[351301032,1738509060487,-500.0,0.00011914,2]
[351301034,1738509060496,-500.0,0.00011914,2]
[351301036,1738509060506,-500.0,0.00011914,2]
[351301038,1738509060515,-500.0,0.00011914,2]
[351301040,1738509060525,-1219.97,0.00011914,2]
[351301042,1738509060534,-500.0,0.00011914,2]
[351301044,1738509060544,-500.0,0.00011914,2]
[351301046,1738509060554,-500.0,0.00011914,2]
[351301048,1738509060565,-500.0,0.00011914,2]
[351301050,1738509060575,-500.0,0.00011914,2]
[351301052,1738509060586,-500.0,0.00011914,2]
[351301053,1738509060596,-500.0,0.00011914,2]
[351301054,1738509060605,-500.0,0.00011914,2]
[351301055,1738509060615,-500.0,0.00011914,2]
[351301056,1738509060624,-500.0,0.00011914,2]
[351301057,1738509060633,-622.55,0.00011914,2]
[351301058,1738509060643,-623.56,0.00011914,2]
[351301059,1738509060652,-500.0,0.00011914,2]
[351301060,1738509060662,-500.0,0.00011914,2]
[351301061,1738509060671,-500.0,0.00011914,2]
[351301062,1738509060681,-500.0,0.00011914,2]
[351301064,1738509060691,-500.0,0.00011914,2]
[351301066,1738509060700,-500.0,0.00011914,2]
[351301068,1738509060709,-650.4,0.00011914,2]
[351301070,1738509060719,-937.48,0.00011914,2]
[351301072,1738509060729,-500.0,0.00011914,2]
[351301074,1738509060739,-500.0,0.00011914,2]
[351301095,1738509060945,-500.0,0.00011914,2]
[351301097,1738509060957,-500.0,0.00011914,2]
[351301099,1738509060969,-500.0,0.00011914,2]
[351301102,1738509060979,-538.63,0.00011914,2]
[351301103,1738509060989,-500.0,0.00011914,2]
[351301106,1738509060999,-888.68,0.00011914,2]
[351301108,1738509061010,-672.78,0.00011914,2]
[351301109,1738509061020,-500.0,0.00011914,2]
[351301111,1738509061031,-670.63,0.00011914,2]
[351301113,1738509061040,-640.52,0.00011914,2]
[351301115,1738509061051,-588.04,0.00011914,2]
[351301117,1738509061066,-595.27,0.00011914,2]
[351301119,1738509061080,-500.0,0.00011914,2]
[351301121,1738509061090,-500.0,0.00011914,2]
[351301123,1738509061100,-553.21,0.00011914,2]
[351301125,1738509061110,-500.0,0.00011914,2]
[351301127,1738509061120,-638.26333049,0.00011914,2]
[351301129,1738509061131,-506.53,0.00011914,2]
[351301131,1738509061141,-500.0,0.00011914,2]
[351301133,1738509061150,-500.0,0.00011914,2]
[351301135,1738509061161,-533.16,0.00011914,2]
[351301137,1738509061171,-624.26,0.00011914,2]
[351301139,1738509061181,-500.0,0.00011914,2]
[351301142,1738509061191,-500.0,0.00011915,2]
[351301143,1738509061200,-500.0,0.00011915,2]
[351301146,1738509061211,-500.0,0.00011915,2]
[351301148,1738509061222,-500.0,0.00011915,2]
[351301150,1738509061232,-500.0,0.00011915,2]
[351301152,1738509061242,-761.36,0.00011915,2]
[351301154,1738509061251,-500.0,0.00011915,2]
[351301156,1738509061261,-723.99,0.00011915,2]
[351301158,1738509061271,-956.51,0.00011915,2]
[351301160,1738509061281,-786.91,0.00011915,2]
[351301162,1738509061291,-500.0,0.00011915,2]
[351301163,1738509061302,-500.0,0.00011915,2]
[351301165,1738509061315,-500.0,0.00011915,2]
[351301167,1738509061325,-1139.6,0.00011915,2]
[351301170,1738509061335,-549.87,0.00011915,2]
[351301171,1738509061345,-932.09,0.00011915,2]
[351301174,1738509061356,-1149.46,0.00011915,2]
[351301175,1738509061366,-500.0,0.00011915,2]
[351301178,1738509061376,-532.02,0.00011915,2]
[351301180,1738509061386,-500.0,0.00011915,2]
[351301181,1738509061395,-847.83,0.00011915,2]
[351301183,1738509061405,-840.14,0.00011915,2]
[351301186,1738509061416,-500.0,0.00011915,2]
[351301188,1738509061425,-500.0,0.00011915,2]
[351301190,1738509061435,-500.0,0.00011915,2]
[351301191,1738509061444,-500.0,0.00011916,2]
[351301193,1738509061454,-500.0,0.00011916,2]
[351301195,1738509061464,-500.0,0.00011916,2]
[351301197,1738509061474,-500.0,0.00011916,2]
[351301199,1738509061485,-500.0,0.00011916,2]
[351301202,1738509061495,-500.0,0.00011916,2]
[351301203,1738509061506,-500.0,0.00011916,2]
[351301205,1738509061516,-221.63853347,0.00011916,2]
[351301207,1738509061526,-500.0,0.00011916,2]
[351301209,1738509061536,-500.0,0.00011916,2]
[351301211,1738509061546,-500.0,0.00011916,2]
[351301213,1738509061556,-500.0,0.00011916,2]
[351301216,1738509061571,-500.0,0.00011916,2]
[351301217,1738509061582,-500.0,0.00011916,2]
[351301219,1738509061591,-500.0,0.00011916,2]
[351301222,1738509061602,-500.0,0.00011916,2]
[351301224,1738509061613,-500.0,0.00011916,2]
[351301225,1738509061622,-529.69,0.00011916,2]
[351301227,1738509061632,-500.0,0.00011916,2]
[351301229,1738509061642,-271.48,0.00011916,2]
[351301231,1738509061652,-500.0,0.00011916,2]
[351301233,1738509061662,-500.0,0.00011916,2]
[351301235,1738509061672,-324.8,0.00011916,2]
[351301238,1738509061689,-500.0,0.00011916,2]
[351301240,1738509061703,-500.0,0.00011916,2]
[351301242,1738509061714,-500.0,0.00011916,2]
[351301244,1738509061724,-500.0,0.00011916,2]
[351301246,1738509061734,-500.0,0.00011916,2]
[351301248,1738509061745,-500.0,0.00011916,2]
[351301251,1738509061761,-500.0,0.00011916,2]
[351301253,1738509061771,-500.0,0.00011916,2]
[351301255,1738509061782,-500.0,0.00011916,2]
[351301257,1738509061794,-500.0,0.00011916,2]
[351301259,1738509061804,-500.0,0.00011916,2]
[351301261,1738509061817,-171.4387635,0.00011916,2]
[351301263,1738509061827,-585.98788545,0.00011916,2]
[351301265,1738509061838,-500.0,0.00011916,2]
[351301267,1738509061848,-514.42,0.00011916,2]
[351301269,1738509061858,-500.0,0.00011916,2]
[351301271,1738509061869,-500.0,0.00011916,2]
[351301273,1738509061880,-500.0,0.00011916,2]
[351301275,1738509061890,-166.86051993,0.00011916,2]
[351301277,1738509061902,-500.0,0.00011916,2]
[351301278,1738509061912,-500.0,0.00011916,2]
[351301280,1738509061922,-500.0,0.00011916,2]
[351301283,1738509061932,-255.0,0.00011945,2]
[351301284,1738509061942,-500.0,0.00011973,2]
[351301287,1738509061952,-360.94475676,0.00011973,2]
[351301288,1738509061963,-643.84044485,0.00011973,2]
[351301290,1738509061973,-501.11602995,0.00011973,2]
[351301293,1738509061984,-499.78770103,0.00011973,2]
[351301295,1738509061994,-501.21143477,0.00011973,2]
[351301297,1738509062004,-521.01256259,0.00011973,2]
[351301298,1738509062015,-152.47291193,0.00011973,2]
[351301300,1738509062024,-160.38220219,0.00011973,2]
[351301302,1738509062034,-160.29442873,0.00011973,2]
[351301305,1738509062045,-502.56191735,0.00011973,2]
[351301307,1738509062055,-152.59967434,0.00011973,2]
[351301309,1738509062068,-151.26668365,0.00011973,2]
[351301311,1738509062079,-500.0,0.00011973,2]
[351301313,1738509062089,-3105.62,0.0001199,3]
[351301315,1738509062100,-455.84528439,0.0001199,2]
[351301317,1738509062110,-300.0,0.00011999,2]
[351301319,1738509062121,-374.60000664,0.00011999,2]
[351301321,1738509062131,-1008.99495766,0.00011999,3]
[351301323,1738509062141,-727.97955021,0.00012,2]
[351301325,1738509062151,-66703.11271706,0.00012,2]
[351301328,1738509062169,-25437.51786075,0.00012,2]
[351301330,1738509062184,-411571.95354069,0.00012,2]
[351301345,1738509062453,-2046.5449,0.00011128,2]
[351301346,1738509062462,-307.4551,0.00011227,2]
[351301347,1738509062476,-192.5449,0.00011227,2]
[351301348,1738509062487,-500.0,0.00011364,2]
[351301349,1738509062496,-342.11,0.00011501,2]
[351301350,1738509062506,-8115.34513,0.00012,2]
[351301352,1738509062538,-1550.41970553,0.00012,2]
[351301353,1738509062549,-513.78882385,0.00012,2]
[351301354,1738509062560,-1853.23,0.00012,2]
[351301365,1738509218521,753.8841496,0.00023,120]
[351301366,1738509292286,-30000.0,0.00016,15]
[351301367,1738509310370,-5000.0,0.00016,15]
[351301368,1738509481792,912.09,8.273e-05,2]
[351301369,1738509529734,206.17,0.00023,120]
[351301371,1738509637499,166.08,9.721e-05,2]
[351301372,1738509719372,23900.0,9.73e-05,2]
[351301373,1738509740200,1042.74,0.00016658,30]
[351301374,1738509787063,2000.0,9.73e-05,2]
[351301376,1738509803193,1557.94,9.73e-05,2]
[351301377,1738509930001,2123.95,9.815e-05,2]
[351301378,1738509937159,275.16771606,8e-05,2]
[351301380,1738509992285,200.0,9.739e-05,2]
[351301733,1738510044169,2078.54,9.712e-05,2]
[351301857,1738510047368,250.0,9.716e-05,2]
[351302216,1738510099746,200.0,8.507e-05,2]
[351302217,1738510146431,1000.0,9.725e-05,2]
[351302218,1738510149385,3218.72,9.725e-05,2]
[351302219,1738510158619,1647.21,9.725e-05,2]
[351302220,1738510180666,825.88,9.769e-05,2]
[351302221,1738510185163,11185.0,9.227e-05,2]
[351302222,1738510230778,150.0,0.00022787,120]
[351302245,1738510232007,-300.0,9.999e-05,2]
[351302246,1738510232017,-100.0,9.999e-05,2]
[351302247,1738510232029,-50.0,9.999e-05,2]
[351302248,1738510232039,-740.00448826,0.0001,2]
[351302249,1738510232052,-1699.03275295,0.0001,2]
[351302250,1738510232284,-628.78,0.0001,2]
[351302251,1738510232368,-1116.28322968,0.0001,2]
[351302252,1738510232380,-252677.60728889,0.0001,2]
[351302253,1738510232391,-23760.76269442,0.0001,2]
[351302254,1738510232401,-169.58,0.00010137,2]
[351302255,1738510232410,-192.9,0.00010137,2]
[351302256,1738510232419,-157.06,0.00010178,2]
[351302257,1738510232428,-157.06,0.00010182,2]
[351302258,1738510232438,-157.06,0.00010187,2]
[351302259,1738510232447,-157.06,0.00010192,2]
[351302260,1738510232457,-157.06,0.00010196,2]
[351302261,1738510232466,-157.06,0.00010201,2]
[351302262,1738510232476,-157.06,0.00010206,2]
[351302263,1738510232485,-157.06,0.0001021,2]
[351302264,1738510232495,-157.06,0.00010215,2]
[351302265,1738510232504,-157.06,0.0001022,2]
[351302266,1738510232513,-157.06,0.00010224,2]
[351302267,1738510232523,-157.06,0.00010229,2]
[351302268,1738510232532,-1500.0,0.00010388,2]
[351302269,1738510232542,-912.09,0.00010537,2]
[351302270,1738510232551,-1241.88,0.00010581,2]
[351302271,1738510232561,-2793.88,0.00010622,2]
[351302272,1738510232570,-166.66,0.00010629,2]
[351302273,1738510232580,-441.6,0.00010685,2]
[351302274,1738510232592,-298.51,0.00010685,2]
[351302275,1738510232601,-298.51,0.00010685,2]
[351302277,1738510232611,-295.29,0.00010685,2]
[351302279,1738510232620,-5946.49993206,0.00010788,2]
[351302281,1738510232629,-351.28886693,0.000108,2]
[351302282,1738510232639,-1000.0,0.0001094,2]
[351302283,1738510232649,-500.0,0.00010958,2]
[351302284,1738510232659,-594.56,0.00010958,2]
[351302285,1738510232669,-500.0,0.00010958,2]
[351302286,1738510232679,-500.0,0.00010958,2]
[351302287,1738510232688,-356.09135127,0.00010958,2]
[351302288,1738510232698,-500.0,0.00010958,2]
[351302289,1738510232708,-500.0,0.00010958,2]
[351302290,1738510232717,-500.0,0.00010958,2]
[351302291,1738510232727,-500.0,0.00010958,2]
[351302292,1738510232736,-500.0,0.00010958,2]